bitfinex-derivatives/quotes_BTCF0:USTF0_20250614
["timestamp","ask_amount","ask_price","bid_price","bid_amount"]
[1749916033022,0.2557911,104840.0,104830.0,0.92228994]
[1749916033222,0.2557911,104840.0,104830.0,1.96844994]
[1749916033424,0.2557911,104840.0,104830.0,0.92228994]
[1749916033821,0.2557911,104840.0,104830.0,1.96844994]
[1749916034230,0.2557911,104840.0,104830.0,1.87918496]
[1749916034524,0.2557911,104840.0,104830.0,1.67601998]
[1749916034724,0.2557911,104840.0,104830.0,1.87918496]
[1749916034914,0.2557911,104840.0,104830.0,1.67601998]
[1749916035116,0.2557911,104840.0,104830.0,2.02984994]
[1749916036523,0.2254911,104840.0,104830.0,2.02984994]
[1749916036724,0.2244911,104840.0,104830.0,2.03284994]
[1749916037221,0.2244911,104840.0,104830.0,1.94358496]
[1749916037414,0.0328,104840.0,104830.0,1.94758496]
[1749916037619,0.190677,104840.0,104830.0,2.17986274]
[1749916038927,0.42642204,104850.0,104840.0,0.190677]
[1749916039130,0.37875284,104850.0,104840.0,0.43836775]
[1749916039525,0.00014324,104850.0,104840.0,1.10800873]
[1749916039723,1e-08,104850.0,104840.0,1.37638296]
[1749916039934,1e-08,104850.0,104840.0,2.42426296]
[1749916040234,1e-08,104850.0,104840.0,2.42526296]
[1749916040532,1e-08,104850.0,104840.0,2.63042794]
[1749916041526,1e-08,104850.0,104840.0,2.66017375]
[1749916043029,1e-08,104850.0,104840.0,2.66053375]
[1749916043228,1e-08,104850.0,104840.0,2.54152296]
[1749916043631,1e-08,104850.0,104840.0,1.49328296]
[1749916043832,1e-08,104850.0,104840.0,2.63024258]
[1749916045133,1e-08,104850.0,104840.0,1.58216258]
[1749916045331,1e-08,104850.0,104840.0,2.62948258]
[1749916045531,1e-08,104850.0,104840.0,1.58216258]
[1749916045831,1e-08,104850.0,104840.0,2.62948258]
[1749916048032,1e-08,104850.0,104840.0,2.62860258]
[1749916048830,1e-08,104850.0,104840.0,1.58216258]
[1749916049132,1e-08,104850.0,104840.0,2.62816258]
[1749916051134,1e-08,104850.0,104840.0,2.62812258]
[1749916053234,1e-08,104850.0,104840.0,2.53274658]
[1749916054237,1e-08,104850.0,104840.0,2.44386696]
[1749916054638,0.03120001,104850.0,104840.0,2.44386696]
[1749916056739,0.06400001,104850.0,104840.0,2.44386696]
[1749916057841,0.09560001,104850.0,104840.0,0.894477]
[1749916058039,0.09560001,104850.0,104840.0,2.14260198]
[1749916059843,0.09560001,104850.0,104840.0,2.46477775]
[1749916060043,0.09560001,104850.0,104840.0,2.46877775]
[1749916060342,0.09560001,104850.0,104840.0,1.42381775]
[1749916060542,0.09560001,104850.0,104840.0,2.46817775]
[1749916061038,0.09560001,104850.0,104840.0,2.26501277]
[1749916061243,0.09560001,104850.0,104840.0,2.26801277]
[1749916062045,0.09560001,104850.0,104840.0,2.06484779]
[1749916062236,0.09560001,104850.0,104840.0,2.26801277]
[1749916064750,0.28625961,104850.0,104840.0,1.02048779]
[1749916064939,0.28625961,104850.0,104840.0,2.61076198]
[1749916065141,0.28625961,104850.0,104840.0,2.69993306]
[1749916065444,0.28625961,104850.0,104840.0,2.69949306]
[1749916066152,0.28625961,104850.0,104840.0,3.06025306]
[1749916066345,0.28625961,104850.0,104840.0,3.0602962]
[1749916066539,0.28625961,104850.0,104840.0,2.85113054]
[1749916066739,0.28625961,104850.0,104840.0,3.05629552]
[1749916066940,0.28625961,104850.0,104840.0,2.01381552]
[1749916067235,0.28625961,104850.0,104840.0,1.92660198]
[1749916067440,0.28625961,104850.0,104840.0,2.96596198]
[1749916068043,0.28625961,104850.0,104840.0,3.08497277]
[1749916068248,0.28625961,104850.0,104840.0,3.08397277]
[1749916068550,0.28625961,104850.0,104840.0,3.08597277]
[1749916069146,0.28625961,104850.0,104840.0,1.84044779]
[1749916069341,1.18022459,104850.0,104840.0,0.15483959]
[1749916069540,0.64705961,104850.0,104840.0,1.1054161]
[1749916069839,0.85022459,104850.0,104840.0,0.30086965]
[1749916070044,0.85022459,104850.0,104840.0,1.34082965]
[1749916070742,0.85022459,104850.0,104840.0,1.33782965]
[1749916071851,0.64705961,104850.0,104840.0,1.33782965]
[1749916073454,1.00705961,104850.0,104840.0,0.10719195]
[1749916073660,1.00705961,104850.0,104840.0,1.27789365]
[1749916074158,1.21022459,104850.0,104840.0,1.27737365]
[1749916075462,1.21022459,104850.0,104840.0,0.23833365]
[1749916075759,1.21022459,104850.0,104840.0,1.27745365]
[1749916076163,1.21022459,104850.0,104840.0,1.27693365]
[1749916076364,1.21022459,104850.0,104840.0,1.27673365]
[1749916078068,1.19022459,104850.0,104840.0,1.27673365]
[1749916080368,1.19022459,104850.0,104840.0,0.23833365]
[1749916080569,1.19022459,104850.0,104840.0,1.27601365]
[1749916080868,1.19022459,104850.0,104820.0,0.00014324]
[1749916080869,0.1906959,104830.0,104820.0,0.00014324]
[1749916081067,1.65478088,104830.0,104820.0,0.00014324]
[1749916081373,0.1907141,104820.0,104810.0,0.82948]
[1749916081568,0.81767908,104820.0,104810.0,0.82948]
[1749916081866,0.1907323,104810.0,104800.0,0.90961708]
[1749916082072,0.2537323,104810.0,104800.0,1.28961708]
[1749916082265,0.2537323,104810.0,104800.0,2.32921708]
[1749916083168,0.2537323,104810.0,104800.0,1.2957721]
[1749916083375,0.6145323,104810.0,104800.0,1.0986161]
[1749916083574,0.6145323,104810.0,104800.0,1.04208]
[1749916083764,0.6145323,104810.0,104800.0,1.2328305]
[1749916083963,0.6145323,104810.0,104800.0,1.2348305]
[1749916084162,0.6145323,104810.0,104800.0,0.21432]
[1749916084362,0.6145323,104810.0,104800.0,1.04408]
[1749916084563,0.6458323,104810.0,104800.0,1.04364]
[1749916086969,0.6458323,104810.0,104800.0,1.2343905]
[1749916087671,1.21899728,104810.0,104800.0,1.04396]
[1749916087864,1.22899728,104810.0,104800.0,1.04396]
[1749916088064,1.22899728,104810.0,104800.0,0.005]
[1749916089567,1.43835728,104810.0,104800.0,0.005]
[1749916090468,1.2351923,104810.0,104800.0,0.005]
[1749916090669,1.43835728,104810.0,104800.0,0.005]
[1749916091573,1.93835728,104810.0,104800.0,0.005]
[1749916093276,2.03377328,104810.0,104800.0,0.005]
[1749916093673,2.03377328,104810.0,104800.0,1e-07]
[1749916093879,1.82441328,104810.0,104800.0,1e-07]
[1749916094179,2.03381328,104810.0,104800.0,1e-07]
[1749916094373,0.1907505,104800.0,104790.0,0.00014324]
[1749916094678,0.81871548,104800.0,104790.0,0.00014324]
[1749916096178,0.6155505,104800.0,104790.0,0.00014324]
[1749916096378,0.1907687,104790.0,104780.0,2.03656814]
[1749916096579,0.2864687,104790.0,104780.0,2.03656814]
[1749916096981,0.2864687,104790.0,104780.0,2.03612814]
[1749916097583,0.2864687,104790.0,104780.0,2.24029312]
[1749916097783,1.7864687,104790.0,104780.0,2.24029312]
[1749916098285,1.5,104790.0,104780.0,2.94419312]
[1749916098588,0.3338323,104800.0,104790.0,0.1907687]
[1749916098883,0.3806178,104810.0,104800.0,0.1907505]
[1749916099081,1.8806178,104810.0,104800.0,1.89207548]
[1749916099585,1.71841788,104810.0,104800.0,1.89207548]
[1749916099784,2.21841788,104810.0,104800.0,0.85351548]
[1749916099979,2.17073148,104810.0,104800.0,2.25103548]
[1749916100379,2.17073148,104810.0,104800.0,1.89103548]
[1749916100380,2.17373148,104810.0,104800.0,1.89103548]
[1749916100579,0.67373148,104810.0,104800.0,1.89103548]
[1749916100883,0.67573148,104810.0,104800.0,1.89103548]
[1749916101687,0.67573148,104810.0,104800.0,1.6878705]
[1749916101882,0.67573148,104810.0,104800.0,1.89083548]
[1749916103189,0.67573148,104810.0,104800.0,1.52899548]
[1749916103390,0.67573148,104810.0,104800.0,1.88979548]
[1749916103786,0.17573148,104810.0,104800.0,1.52899548]
[1749916103987,0.17573148,104810.0,104800.0,1.3258305]
[1749916104187,0.17373148,104810.0,104800.0,1.3258305]
[1749916104386,0.17073148,104810.0,104800.0,1.3258305]
[1749916104589,0.23593148,104810.0,104800.0,1.3258305]
[1749916104885,0.59673148,104810.0,104800.0,1.3257905]
[1749916105485,0.59673148,104810.0,104800.0,1.13504]
[1749916105691,0.59673148,104810.0,104800.0,1.3257905]
[1749916105887,0.20293148,104810.0,104800.0,1.3257905]
[1749916106083,0.20293148,104810.0,104800.0,1.52895548]
[1749916106691,0.20293148,104810.0,104800.0,1.3257905]
[1749916108191,0.20293148,104810.0,104800.0,1.3853266]
[1749916109200,0.56373148,104810.0,104800.0,1.3853266]
[1749916109495,0.53253148,104810.0,104800.0,1.3853266]
[1749916109696,0.17173148,104810.0,104800.0,1.60700461]
[1749916109898,0.17173148,104810.0,104800.0,1.60600461]
[1749916110686,0.17173148,104810.0,104800.0,1.94600461]
[1749916110890,0.16173148,104810.0,104800.0,2.3961081]
[1749916111294,0.16173148,104810.0,104800.0,3.2205481]
[1749916112292,0.16173148,104810.0,104800.0,2.0053081]
[1749916112493,0.16173148,104810.0,104800.0,3.0401881]
[1749916113692,0.16173148,104810.0,104800.0,2.980652]
[1749916114092,0.16173148,104810.0,104800.0,0.91816702]
[1749916114302,0.16173148,104810.0,104800.0,1.65148834]
[1749916114695,0.16173148,104810.0,104800.0,0.82536834]
[1749916114998,0.16173148,104810.0,104800.0,1.65104834]
[1749916115198,0.52253148,104810.0,104800.0,1.65104834]
[1749916115597,0.52253148,104810.0,104800.0,0.61688834]
[1749916115798,0.52253148,104810.0,104800.0,1.65068834]
[1749916116298,0.72569646,104810.0,104800.0,0.35983784]
[1749916116498,0.46099646,104810.0,104800.0,1.14433435]
[1749916116794,0.82179646,104810.0,104800.0,1.14433435]
[1749916117104,0.61863148,104810.0,104800.0,1.31657182]
[1749916117803,0.61863148,104810.0,104800.0,1.09332132]
[1749916118804,0.82179646,104810.0,104800.0,1.09332132]
[1749916119203,0.82179646,104810.0,104800.0,1.09308132]
[1749916119504,0.82179646,104810.0,104800.0,1.09268132]
[1749916119901,0.82179646,104810.0,104800.0,0.88420132]
[1749916120307,0.61863148,104810.0,104800.0,0.88420132]
[1749916120604,0.82179646,104810.0,104800.0,0.88420132]
[1749916120794,1.32179646,104810.0,104800.0,0.88420132]
[1749916121809,1.32179646,104810.0,104800.0,1.07495182]
[1749916122104,1.32179646,104810.0,104800.0,0.88420132]
[1749916122299,1.11863148,104810.0,104800.0,1.07495182]
[1749916122900,0.75783148,104810.0,104800.0,1.07495182]
[1749916123795,0.75783148,104810.0,104800.0,1.28315182]
[1749916123998,1.11863148,104810.0,104800.0,1.28315182]
[1749916126204,0.75783148,104810.0,104800.0,1.4863168]
[1749916126406,0.75783148,104810.0,104800.0,1.5492168]
[1749916126606,0.75783148,104810.0,104800.0,1.63852029]
[1749916129603,2.25783148,104810.0,104800.0,1.63852029]
[1749916130706,2.25783148,104810.0,104800.0,1.43535531]
[1749916132504,2.25783148,104810.0,104800.0,1.37583399]
[1749916134300,2.25783148,104810.0,104800.0,1.39440586]
[1749916134505,2.16173148,104810.0,104800.0,2.30837084]
[1749916134703,0.66173148,104810.0,104800.0,2.30837084]
[1749916135509,0.66173148,104810.0,104800.0,2.30517084]
[1749916136109,0.16173148,104810.0,104800.0,2.30517084]
[1749916137213,0.16173148,104810.0,104800.0,2.10200586]
[1749916137508,0.16173148,104810.0,104800.0,2.30517084]
[1749916138303,0.001,104810.0,104800.0,3.24347233]
[1749916138507,0.001,104810.0,104800.0,3.36248312]
[1749916140012,0.001,104810.0,104800.0,3.15931814]
[1749916141016,0.001,104810.0,104800.0,3.16031814]
[1749916141213,0.33391154,104820.0,104810.0,0.1907323]
[1749916141414,0.33391154,104820.0,104810.0,1.28920452]
[1749916141916,0.33391154,104820.0,104810.0,0.93920452]
[1749916142111,0.33391154,104820.0,104810.0,1.11920452]
[1749916142311,0.33491154,104820.0,104810.0,1.11920452]
[1749916143217,0.38588952,104850.0,104810.0,1.51530528]
[1749916143410,0.4836751,104850.0,104840.0,0.79927306]
[1749916143617,0.3336751,104850.0,104840.0,1.68273931]
[1749916143810,0.3976751,104850.0,104840.0,1.68273931]
[1749916144315,0.8976751,104850.0,104840.0,1.68273931]
[1749916144613,0.8986751,104850.0,104840.0,1.6232283]
[1749916145116,0.9016751,104850.0,104840.0,1.6232283]
[1749916145510,0.9056751,104850.0,104840.0,1.4325506]
[1749916145707,1.80964008,104850.0,104840.0,1.0717506]
[1749916146115,1.80964008,104850.0,104840.0,1.0715906]
[1749916146318,1.80964008,104850.0,104840.0,1.2622683]
[1749916146517,1.6064751,104850.0,104840.0,1.0128777]
[1749916152824,1.5747751,104850.0,104840.0,1.0128777]
[1749916153023,0.508,104850.0,104840.0,1.96143328]
[1749916153220,0.6986595,104850.0,104840.0,2.11664429]
[1749916153523,0.6986595,104850.0,104840.0,2.94077311]
[1749916153826,0.6986595,104850.0,104840.0,2.89629369]
[1749916154025,0.6986595,104850.0,104840.0,2.97255267]
[1749916154219,0.6976595,104850.0,104840.0,2.97255267]
[1749916154925,0.507,104850.0,104840.0,2.97255267]
[1749916155122,0.6946596,104850.0,104840.0,2.83678268]
[1749916155329,0.004,104850.0,104840.0,2.83678268]
[1749916155825,0.002,104850.0,104840.0,2.83878268]
[1749916156026,0.33378964,104860.0,104850.0,0.1906595]
[1749916156223,0.33378964,104860.0,104850.0,1.35288448]
[1749916156628,0.83378964,104860.0,104850.0,1.35288448]
[1749916157627,0.83378964,104860.0,104850.0,1.02288448]
[1749916158219,0.28612534,104860.0,104850.0,1.02288448]
[1749916158821,0.28612534,104860.0,104850.0,1.06733932]
[1749916159422,0.28612534,104860.0,104850.0,1.42733932]
[1749916159622,0.28612534,104860.0,104850.0,1.06733932]
[1749916160824,0.28612534,104860.0,104850.0,0.86417434]
[1749916161126,0.28612534,104860.0,104850.0,1.06733932]
[1749916162228,0.48929032,104860.0,104850.0,0.04445484]
[1749916162431,0.55559032,104860.0,104850.0,1.2141394]
[1749916162631,0.55559032,104860.0,104850.0,1.02348]
[1749916163331,0.55559032,104860.0,104850.0,1.2141395]
[1749916163636,0.1906595,104850.0,104840.0,1.92164988]
[1749916163931,0.2868595,104850.0,104840.0,1.3676849]
[1749916164226,0.2868595,104850.0,104840.0,2.31395113]
[1749916164716,0.2868595,104850.0,104840.0,0.95636753]
[1749916164923,0.85082448,104850.0,104840.0,1.07237484]
[1749916165126,0.85082448,104850.0,104840.0,1.89241484]
[1749916165421,0.85082448,104850.0,104840.0,1.84796]
[1749916165617,0.85082448,104850.0,104840.0,1.89241484]
[1749916165827,0.85082448,104850.0,104840.0,2.08309254]
[1749916166221,0.85082448,104850.0,104840.0,1.89241484]
[1749916166424,0.6476595,104850.0,104840.0,1.89241484]
[1749916166626,0.6496595,104850.0,104840.0,2.08309254]
[1749916166929,0.6496595,104850.0,104840.0,1.06825484]
[1749916167128,1.23482448,104850.0,104840.0,0.04445484]
[1749916167429,1.23482448,104850.0,104840.0,0.86445484]
[1749916167635,1.23482448,104850.0,104840.0,0.04445484]
[1749916167928,1.23482448,104850.0,104840.0,0.86445484]
[1749916168128,1.23482448,104850.0,104840.0,1.05513254]
[1749916168321,0.6708595,104850.0,104840.0,1.05513254]
[1749916168827,0.6708595,104850.0,104840.0,1.67876567]
[1749916169329,0.2908595,104850.0,104840.0,1.67876567]
[1749916169533,0.2908595,104850.0,104840.0,1.88193065]
[1749916169738,0.7908595,104850.0,104840.0,1.31796567]
[1749916169927,0.7888595,104850.0,104840.0,1.31796567]
[1749916170434,1.4876595,104850.0,104840.0,1.25869254]
[1749916170626,1.1268595,104850.0,104840.0,1.25869254]
[1749916170829,1.1268595,104850.0,104840.0,1.31796567]
[1749916171230,1.4876595,104850.0,104840.0,1.31796567]
[1749916171425,1.4896595,104850.0,104840.0,1.25869254]
[1749916171631,1.4896595,104850.0,104840.0,1.31796567]
[1749916172030,1.4896595,104850.0,104840.0,1.25869254]
[1749916172232,1.4916595,104850.0,104840.0,1.31796567]
[1749916174232,1.1308595,104850.0,104840.0,1.31796567]
[1749916174424,1.4916595,104850.0,104840.0,1.31796567]
[1749916174628,1.1308595,104850.0,104840.0,1.31796567]
[1749916174932,1.4916595,104850.0,104840.0,1.31796567]
[1749916175435,1.4916595,104850.0,104840.0,1.12728797]
[1749916178738,1.69482448,104850.0,104840.0,0.10372797]
[1749916178934,1.69482448,104850.0,104840.0,0.86237484]
[1749916179836,1.69482448,104850.0,104840.0,0.86253469]
[1749916180636,1.4916595,104850.0,104840.0,0.86253469]
[1749916181440,1.1308595,104850.0,104840.0,0.86253469]
[1749916181635,1.4916595,104850.0,104840.0,0.86253469]
[1749916182138,1.4916595,104850.0,104840.0,1.05321239]
[1749916182339,1.4916595,104850.0,104840.0,0.86253469]
[1749916184040,1.69482448,104850.0,104840.0,0.86253469]
[1749916185346,1.4916595,104850.0,104840.0,0.86253469]
[1749916185542,1.69482448,104850.0,104840.0,0.86253469]
[1749916187450,1.4916595,104850.0,104840.0,0.86253469]
[1749916187950,1.69482448,104850.0,104840.0,1.05321239]
[1749916188350,1.4916595,104850.0,104840.0,0.86253469]
[1749916188652,1.69482448,104850.0,104840.0,0.92180782]
[1749916188949,1.69482448,104850.0,104840.0,0.86253469]
[1749916189150,1.4916595,104850.0,104840.0,0.86253469]
[1749916189350,1.69482448,104850.0,104840.0,0.86253469]
[1749916189551,1.69482448,104850.0,104840.0,0.92180782]
[1749916190456,1.69482448,104850.0,104840.0,0.86253469]
[1749916191552,1.75396437,104850.0,104840.0,0.92180782]
[1749916192956,1.75396437,104850.0,104840.0,0.10388782]
[1749916195054,1.75396437,104850.0,104840.0,0.29456552]
[1749916196160,1.75396437,104850.0,104840.0,0.10388782]
[1749916196457,1.75396437,104850.0,104840.0,0.29456562]
[1749916197057,1.75396437,104850.0,104840.0,0.10388782]
[1749916197356,1.75396437,104850.0,104840.0,0.29456562]
[1749916198158,1.75396437,104850.0,104840.0,0.10388782]
[1749916198455,1.75396437,104850.0,104840.0,0.29456552]
[1749916198658,1.75396437,104850.0,104840.0,0.10388782]
[1749916198859,1.84267421,104850.0,104840.0,0.04461469]
[1749916199860,1.63950923,104850.0,104840.0,0.04461469]
[1749916200053,1.84267421,104850.0,104840.0,0.04461469]
[1749916200761,1.78353432,104850.0,104840.0,0.04461469]
[1749916200954,0.1906777,104840.0,104830.0,1.11915106]
[1749916201257,1.20545141,104840.0,104830.0,1.11915106]
[1749916201759,3.54592434,104840.0,104800.0,0.15765112]
[1749916201961,0.1907687,104790.0,104780.0,0.0961]
[1749916202164,1.11473368,104790.0,104780.0,0.1861]
[1749916202367,0.5515687,104790.0,104780.0,0.1861]
[1749916202865,0.8915687,104790.0,104780.0,0.1861]
[1749916203054,0.1907869,104780.0,104770.0,0.53720372]
[1749916203254,0.5515869,104780.0,104770.0,0.82720372]
[1749916203454,0.5515869,104780.0,104770.0,1.84500372]
[1749916204260,0.5515869,104780.0,104770.0,1.84800372]
[1749916205157,0.5515869,104780.0,104770.0,1.85722514]
[1749916205854,0.5515869,104780.0,104770.0,1.65406016]
[1749916206059,0.5515869,104780.0,104770.0,1.85722514]
[1749916206363,0.5515869,104780.0,104770.0,1.95512514]
[1749916206557,0.75719573,104790.0,104780.0,0.1907869]
[1749916206752,0.67639963,104790.0,104780.0,0.46975188]
[1749916206958,0.67639963,104790.0,104780.0,1.29415188]
[1749916207764,0.67639963,104790.0,104780.0,1.29715188]
[1749916207958,0.67639963,104790.0,104780.0,1.28715188]
[1749916208662,0.67639963,104790.0,104780.0,2.1016269]
[1749916214060,0.31559963,104790.0,104780.0,2.63331188]
[1749916214258,0.07712513,104790.0,104780.0,2.63331188]
[1749916214464,0.1907687,104790.0,104780.0,2.63331188]
[1749916215257,0.64708394,104800.0,104790.0,0.1907687]
[1749916215460,0.64708394,104800.0,104790.0,0.59633368]
[1749916215461,0.59939374,104800.0,104790.0,0.59633368]
[1749916215666,0.19089374,104800.0,104790.0,1.29096045]
[1749916216062,0.19089374,104800.0,104790.0,0.83473645]
[1749916216569,0.19289374,104800.0,104790.0,0.63157147]
[1749916216760,0.69289374,104800.0,104790.0,0.63157147]
[1749916217569,0.69289374,104800.0,104790.0,0.83473645]
[1749916217769,0.69289374,104800.0,104790.0,1.19553645]
[1749916218170,0.19289374,104800.0,104790.0,1.19553645]
[1749916218469,0.00214324,104800.0,104790.0,1.19553645]
[1749916218770,0.00214324,104800.0,104790.0,0.99237147]
[1749916218968,0.00214324,104800.0,104790.0,1.19553645]
[1749916219366,0.55742395,104810.0,104790.0,1.00476775]
[1749916219569,0.55742395,104810.0,104800.0,2.29879538]
[1749916219570,0.3488175,104810.0,104800.0,2.29879538]
[1749916219770,0.3488175,104810.0,104800.0,2.0956304]
[1749916220071,0.3488175,104810.0,104800.0,2.1356304]
[1749916220570,0.3488175,104810.0,104800.0,2.33879538]
[1749916220766,0.3162175,104810.0,104800.0,2.69959538]
[1749916221271,0.71113144,104820.0,104810.0,0.1907323]
[1749916221473,0.78981344,104820.0,104810.0,0.1907323]
[1749916221971,1.28981344,104820.0,104810.0,0.19982904]
[1749916222566,1.28981344,104820.0,104810.0,0.20082904]
[1749916222972,1.28981344,104820.0,104810.0,0.1917323]
[1749916223468,1.28981344,104820.0,104810.0,0.1937323]
[1749916224175,0.78981344,104820.0,104810.0,0.1937323]
[1749916225772,0.33365004,104820.0,104810.0,0.75769728]
[1749916225970,0.33365004,104820.0,104810.0,0.80699339]
[1749916226274,0.33365004,104820.0,104810.0,0.87059339]
[1749916227167,0.28597094,104820.0,104810.0,0.87059339]
[1749916227776,0.09524324,104820.0,104810.0,0.87059339]
[1749916228175,0.28595734,104820.0,104810.0,0.87059339]
[1749916230275,0.06384324,104820.0,104810.0,0.88884198]
[1749916230578,0.06384324,104820.0,104810.0,0.91984198]
[1749916230579,0.25455744,104820.0,104810.0,0.91984198]
[1749916230875,0.3016736,104830.0,104820.0,0.1907141]
[1749916231075,0.0633,104830.0,104820.0,2.4672341]
[1749916231280,0.3660088,104840.0,104830.0,0.1906959]
[1749916231281,0.0323,104840.0,104830.0,0.1906959]
[1749916231580,0.2229778,104840.0,104830.0,0.4822861]
[1749916231778,0.2842778,104840.0,104830.0,0.54162812]
[1749916232479,0.2842778,104840.0,104830.0,0.4822861]
[1749916233183,0.2842778,104840.0,104830.0,1.4943661]
[1749916233481,0.2862778,104840.0,104830.0,1.4943661]
[1749916233683,0.0956,104840.0,104830.0,1.4943661]
[1749916233980,0.0986,104840.0,104830.0,1.4943661]
[1749916234683,0.2892777,104840.0,104830.0,1.4943661]
[1749916235875,0.2892777,104840.0,104830.0,1.5265661]
[1749916240171,0.2892777,104840.0,104830.0,0.4822861]
[1749916240378,0.2892777,104840.0,104830.0,1.29028112]
[1749916241678,0.2892777,104840.0,104830.0,0.27912112]
[1749916241878,0.2892777,104840.0,104830.0,1.22028112]
[1749916242078,1.10324268,104840.0,104830.0,0.01842522]
[1749916242275,1.10324268,104840.0,104830.0,1.02954522]
[1749916242481,0.85324268,104840.0,104830.0,1.02954522]
[1749916243083,0.85324268,104840.0,104830.0,1.22024112]
[1749916243483,0.6500777,104840.0,104830.0,1.22024112]
[1749916243785,0.85324268,104840.0,104830.0,1.22024112]
[1749916243988,0.6500777,104840.0,104830.0,1.22024112]
[1749916244186,0.85324268,104840.0,104830.0,1.22024112]
[1749916245085,0.85124268,104840.0,104830.0,1.22024112]
[1749916245280,0.6480777,104840.0,104830.0,1.22024112]
[1749916245884,0.6490777,104840.0,104830.0,1.22024112]
[1749916246187,0.2862777,104840.0,104830.0,1.7842061]
[1749916246688,0.2852777,104840.0,104830.0,1.7842061]
[1749916246878,0.2852777,104840.0,104830.0,1.84454812]
[1749916247483,0.0946,104840.0,104830.0,1.84454812]
[1749916247982,0.23848224,104850.0,104840.0,0.1906777]
[1749916248181,0.30228224,104850.0,104840.0,1.21804268]
[1749916248378,0.33488224,104850.0,104840.0,1.0148777]
[1749916248583,0.33488224,104850.0,104840.0,1.3756777]
[1749916248885,0.33488224,104850.0,104840.0,2.3867577]
[1749916249074,0.28721654,104850.0,104840.0,2.3867577]
[1749916249279,0.78821654,104850.0,104840.0,2.58992268]
[1749916249479,0.78821654,104850.0,104840.0,2.3867577]
[1749916249686,0.78921654,104850.0,104840.0,2.3867577]
[1749916250482,0.78921654,104850.0,104840.0,2.44609972]
[1749916250687,0.00014324,104850.0,104840.0,2.44609972]
[1749916250889,0.00014324,104850.0,104840.0,2.7556647]
[1749916251189,0.00014324,104850.0,104840.0,2.87663451]
[1749916251485,0.3608,104870.0,104840.0,3.32449779]
[1749916251690,0.2560231,104870.0,104860.0,0.8688613]
[1749916251990,0.2884231,104870.0,104860.0,2.54855512]
[1749916252783,0.2884231,104870.0,104860.0,2.55774713]
[1749916252985,0.7884231,104870.0,104860.0,2.51008833]
[1749916253181,0.7894231,104870.0,104860.0,2.51008833]
[1749916254395,1.35338808,104870.0,104860.0,2.13889632]
[1749916254599,1.35438808,104870.0,104860.0,2.13889632]
[1749916254797,1.1512231,104870.0,104860.0,2.13889632]
[1749916255692,0.6512231,104870.0,104860.0,2.13889632]
[1749916255896,0.2904231,104870.0,104860.0,2.50923613]
[1749916256594,0.2904231,104870.0,104860.0,2.13889632]
[1749916256789,0.6512231,104870.0,104860.0,2.13889632]
[1749916257911,0.6512231,104870.0,104860.0,1.12905632]
[1749916258210,0.6512231,104870.0,104860.0,2.13881632]
[1749916258909,0.6512231,104870.0,104860.0,1.12905632]
[1749916259209,0.6512231,104870.0,104860.0,2.13881632]
[1749916259706,0.6512231,104870.0,104860.0,1.32789632]
[1749916259915,0.6512231,104870.0,104860.0,2.13881632]
[1749916261214,0.6512231,104870.0,104860.0,2.13877632]
[1749916262701,0.6512231,104870.0,104860.0,1.12905632]
[1749916263010,0.6512231,104870.0,104860.0,2.1197949]
[1749916267911,0.2904231,104870.0,104860.0,2.1197949]
[1749916268213,0.002,104870.0,104860.0,2.7431019]
[1749916268415,0.1926232,104870.0,104860.0,2.8053019]
[1749916272510,0.002,104870.0,104860.0,2.8053019]
[1749916272712,0.1926232,104870.0,104860.0,2.8053019]
[1749916273117,0.002,104870.0,104860.0,2.8053019]
[1749916274713,0.002,104870.0,104860.0,3.25417171]
[1749916275514,0.002,104870.0,104860.0,3.19482969]
[1749916276819,0.002,104870.0,104860.0,3.10595988]
[1749916277618,0.002,104870.0,104860.0,3.22437395]
[1749916277817,0.002,104870.0,104860.0,3.02120897]
[1749916278220,0.002,104870.0,104860.0,3.22437395]
[1749916281914,0.002,104870.0,104860.0,3.02120897]
[1749916282110,0.002,104870.0,104860.0,2.21469395]
[1749916282416,0.002,104870.0,104860.0,3.22405395]
[1749916283121,0.1926184,104870.0,104860.0,1.85249395]
[1749916283316,0.2881184,104870.0,104860.0,3.17185395]
[1749916283518,0.2881184,104870.0,104860.0,1.5709149]
[1749916283823,0.2881184,104870.0,104860.0,2.84181819]
[1749916284215,0.49128338,104870.0,104860.0,0.08920049]
[1749916284422,0.2881184,104870.0,104860.0,2.17230888]
[1749916284824,0.2881184,104870.0,104860.0,1.36178888]
[1749916285025,0.2881184,104870.0,104860.0,2.17230888]
[1749916285325,0.2881184,104870.0,104860.0,0.97251228]
[1749916285525,0.49128338,104870.0,104860.0,1.98167228]
[1749916285913,0.2881184,104870.0,104860.0,1.98167228]
[1749916286420,0.2881184,104870.0,104860.0,2.17230888]
[1749916286619,0.2881184,104870.0,104860.0,1.98167228]
[1749916286823,0.2881184,104870.0,104860.0,2.17230888]
[1749916287420,0.2881184,104870.0,104860.0,1.36178888]
[1749916287621,0.2881184,104870.0,104860.0,2.17230888]
[1749916288629,0.2881184,104870.0,104860.0,1.36178888]
[1749916288829,0.2881184,104870.0,104860.0,2.17230888]
[1749916289328,0.2881184,104870.0,104860.0,1.36178888]
[1749916289632,0.2881184,104870.0,104860.0,2.17226888]
[1749916290731,0.0975,104870.0,104860.0,2.47359709]
[1749916291030,0.0975,104870.0,104860.0,2.82676207]
[1749916291630,0.2881184,104870.0,104860.0,2.82676207]
[1749916292331,0.0975,104870.0,104860.0,2.82676207]
[1749916292731,0.2881184,104870.0,104860.0,2.82676207]
[1749916296133,0.2881184,104870.0,104860.0,2.62359709]
[1749916296332,0.2881184,104870.0,104860.0,2.82676207]
[1749916298435,0.2881184,104870.0,104860.0,2.62359709]
[1749916298631,0.2881184,104870.0,104860.0,2.82676207]
[1749916298826,0.2881184,104870.0,104860.0,1.61447709]
[1749916299032,0.2881184,104870.0,104860.0,2.26275709]
[1749916302346,0.2881184,104870.0,104860.0,1.25367709]
[1749916302534,0.2881184,104870.0,104860.0,2.26275709]
[1749916303837,0.2881184,104870.0,104860.0,1.45235709]
[1749916304039,0.2881184,104870.0,104860.0,2.26271709]
[1749916304440,0.2881184,104870.0,104860.0,1.45235709]
[1749916304738,0.08114995,104870.0,104860.0,2.26271709]
[1749916305948,0.28431493,104870.0,104860.0,2.11267709]
[1749916306446,0.28431493,104870.0,104860.0,2.17217898]
[1749916307143,0.28431493,104870.0,104860.0,2.11267709]
[1749916307550,0.64511493,104870.0,104860.0,0.08920049]
[1749916307744,0.64511493,104870.0,104860.0,1.15770564]
[1749916307945,1.06231493,104870.0,104860.0,1.15770564]
[1749916308251,0.53914995,104870.0,104860.0,1.06850515]
[1749916308435,0.74231493,104870.0,104860.0,1.06850515]
[1749916308848,0.74231493,104870.0,104860.0,0.25818515]
[1749916309048,0.74231493,104870.0,104860.0,1.06846515]
[1749916309254,1.09231493,104870.0,104860.0,1.06846515]
[1749916309446,0.74231493,104870.0,104860.0,1.06846515]
[1749916309643,0.74231493,104870.0,104860.0,0.05950515]
[1749916309843,1.07231493,104870.0,104860.0,1.06846515]